[Event "XII Paracin Festival 2019"]
[Site "Paracin"]
[Date "2019.07.12"]
[Round "9.30"]
[White "Uzumcu, Ahmet Utku"]
[Black "Stefansson, Vignir Vatnar"]
[Result "1/2-1/2"]
[ECO "B33"]
[WhiteElo "2201"]
[BlackElo "2293"]
[Annotator "ChessBase"]
[PlyCount "48"]
[EventDate "2019.07.05"]
[EventType "swiss"]
[EventCountry "SRB"]
[SourceTitle "playchess.com"]
[Source "ChessBase"]
[SourceQuality "1"]
[TimeControl "5400+30"]

1. e4 {[%emt 0:00:00]} c5 {[%emt 0:00:28]} 2. Nf3 {[%emt 0:00:00]} Nc6 {[%emt 0:00:18]} 3. d4 {[%emt 0:00:03]} cxd4 {[%emt 0:00:07]} 4. Nxd4 {[%emt 0:00:05]} Nf6 {[%emt 0:00:08]} 5. Nc3 {[%emt 0:00:07]} e5 {[%emt 0:00:06]} 6. Ndb5 {[%emt 0:00:08]} d6 {[%emt 0:00:07]} 7. Bg5 {[%emt 0:00:08]} a6 {[%emt 0:00:06]} 8. Na3 {[%emt 0:00:03]} Be6 {[%emt 0:00:06]} 9. Nc4 {[%emt 0:01:13]} Rc8 {[%emt 0:00:11]} 10. Ne3 {[%emt 0:01:44]} Be7 {[%emt 0:00:07]} 11. Bxf6 {[%emt 0:04:29]} Bxf6 {[%emt 0:00:08]} 12. Ncd5 {[%emt 0:00:34]} Bg5 {[%emt 0:00:06]} 13. c3 {[%emt 0:00:51]} Bxe3 {[%emt 0:03:42]} 14. Nxe3 {[%emt 0:00:07]} Ne7 {[%emt 0:00:06]} 15. Be2 {[%emt 0:03:35]} O-O {[%emt 0:10:47]} 16. Bf3 {[%emt 0:00:22]} Qb6 {[%emt 0:00:34]} 17. Qd2 {[%emt 0:02:06]} Rcd8 {[%emt 0:02:08]} 18. O-O {[%emt 0:00:45]} Rd7 {[%emt 0:02:58]} 19. Rfd1 {[%emt 0:03:13]} Rfd8 {[%emt 0:00:15]} 20. Qe2 {[%emt 0:01:43]} Qc7 {[%emt 0:11:10]} 21. Rd2 {[%emt 0:14:30]} d5 {[%emt 0:06:06]} 22. exd5 {[%emt 0:03:34]} Nxd5 {[%emt 0:00:09]} 23. Nxd5 {[%emt 0:00:56]} Bxd5 {[%emt 0:00:06]} 24. Bg4 {[%emt 0:12:58]} Be6 {[%emt 0:02:34]} 1/2-1/2